[Event "Titled Tuesday Blitz April 12 Late 2022"]
[White "Foisor, Sabina-Francesca"]
[Black "Nozdrachev, Leonid"]
[WhiteFideId "1212915"]
[BlackFideId "24113433"]
[WhiteElo "2243"]
[BlackElo "2242"]
[Result "0-1"]
[Round "06"]
[TimeControl "180+1"]
[Date "2022.04.13"]
[WhiteClock "0:00:01"]
[BlackClock "0:00:09"]

1. d4 {[%clk 0:02:55]}  d6 {[%clk 0:02:56]} 2. c4 {[%clk 0:02:54]}  e5 {[%clk 0:02:56]} 3. Nc3 {[%clk 0:02:35]}  Nf6 {[%clk 0:02:55]} 4. d5 {[%clk 0:02:35]}  c6 {[%clk 0:02:50]} 5. e4 {[%clk 0:02:34]}  cxd5 {[%clk 0:02:50]} 6. cxd5 {[%clk 0:02:28]}  Qa5 {[%clk 0:02:49]} 7. Bd3 {[%clk 0:02:22]}  Na6 {[%clk 0:02:47]} 8. Ne2 {[%clk 0:01:58]}  Be7 {[%clk 0:02:46]} 9. O-O {[%clk 0:01:56]}  O-O {[%clk 0:02:46]} 10. Bd2 {[%clk 0:01:52]}  Bd8 {[%clk 0:02:39]} 11. a3 {[%clk 0:01:41]}  Qc7 {[%clk 0:02:35]} 12. Rc1 {[%clk 0:01:40]}  Qe7 {[%clk 0:02:34]} 13. Ng3 {[%clk 0:01:39]}  Bb6 {[%clk 0:02:33]} 14. Kh1 {[%clk 0:01:37]}  Ng4 {[%clk 0:02:31]} 15. Qe2 {[%clk 0:01:20]}  Qh4 {[%clk 0:02:29]} 16. h3 {[%clk 0:01:16]}  Nc5 {[%clk 0:02:00]} 17. Bc2 {[%clk 0:01:11]}  a5 {[%clk 0:01:59]} 18. b4 {[%clk 0:01:02]}  axb4 {[%clk 0:01:58]} 19. axb4 {[%clk 0:01:03]}  Na6 {[%clk 0:01:59]} 20. Nb5 {[%clk 0:01:02]}  Nxf2+ {[%clk 0:01:39]} 21. Rxf2 {[%clk 0:01:02]}  Qxg3 {[%clk 0:01:39]} 22. Rf3 {[%clk 0:00:58]}  Qg6 {[%clk 0:01:39]} 23. Rcf1 {[%clk 0:00:53]}  Bd7 {[%clk 0:01:38]} 24. Be1 {[%clk 0:00:48]}  Nc7 {[%clk 0:01:15]} 25. Nxc7 {[%clk 0:00:45]}  Bxc7 {[%clk 0:01:16]} 26. Rg3 {[%clk 0:00:45]}  Qh6 {[%clk 0:01:13]} 27. Bd2 {[%clk 0:00:44]}  Qh4 {[%clk 0:01:12]} 28. Qf3 {[%clk 0:00:33]}  Ra2 {[%clk 0:01:09]} 29. Bg5 {[%clk 0:00:28]}  Qxg5 {[%clk 0:00:48]} 30. Rxg5 {[%clk 0:00:28]}  Rxc2 {[%clk 0:00:47]} 31. Qf6 {[%clk 0:00:19]}  g6 {[%clk 0:00:47]} 32. Qf3 {[%clk 0:00:16]}  Bb5 {[%clk 0:00:44]} 33. Rg1 {[%clk 0:00:13]}  Bb6 {[%clk 0:00:44]} 34. Re1 {[%clk 0:00:13]}  Bd4 {[%clk 0:00:36]} 35. h4 {[%clk 0:00:13]}  Rf2 {[%clk 0:00:29]} 36. Qg3 {[%clk 0:00:11]}  Rf4 {[%clk 0:00:28]} 37. Qh3 {[%clk 0:00:09]}  Bf2 {[%clk 0:00:27]} 38. g3 {[%clk 0:00:08]}  Rf6 {[%clk 0:00:21]} 39. Rb1 {[%clk 0:00:07]}  Bd3 {[%clk 0:00:21]} 40. Rb2 {[%clk 0:00:06]}  Bxe4+ {[%clk 0:00:20]} 41. Kh2 {[%clk 0:00:07]}  Bd4 {[%clk 0:00:20]} 42. Re2 {[%clk 0:00:06]}  Bf3 {[%clk 0:00:18]} 43. Ra2 {[%clk 0:00:05]}  Bxd5 {[%clk 0:00:17]} 44. h5 {[%clk 0:00:06]}  Bxa2 {[%clk 0:00:16]} 45. hxg6 {[%clk 0:00:07]}  Rf2+ {[%clk 0:00:13]} 46. Kg1 {[%clk 0:00:05]}  fxg6 {[%clk 0:00:11]} 47. Rg4 {[%clk 0:00:02]}  Bd5 {[%clk 0:00:10]} 48. Rf4 {[%clk 0:00:01]}  R2xf4+ {[%clk 0:00:09]} 0-1


[Site "https://www.chess.com"]

[Event "Titled Tuesday Blitz April 12 Late 2022"]
[White "Iskusnyh, Sergei"]
[Black "profaVa"]
[WhiteFideId "4120027"]
[WhiteElo "2492"]
[BlackElo "2418"]
[Result "1-0"]
[Round "06"]
[TimeControl "180+1"]
[Date "2022.04.13"]
[WhiteClock "0:00:03"]
[BlackClock "0:00:07"]

1. d4 {[%clk 0:03:00]}  d5 {[%clk 0:02:57]} 2. c4 {[%clk 0:03:01]}  e5 {[%clk 0:02:57]} 3. dxe5 {[%clk 0:03:00]}  d4 {[%clk 0:02:58]} 4. Nf3 {[%clk 0:02:57]}  Nc6 {[%clk 0:02:58]} 5. Nbd2 {[%clk 0:02:57]}  Qe7 {[%clk 0:02:57]} 6. Nb3 {[%clk 0:02:44]}  Bg4 {[%clk 0:02:53]} 7. Nbxd4 {[%clk 0:02:22]}  Rd8 {[%clk 0:02:49]} 8. e3 {[%clk 0:02:09]}  Qb4+ {[%clk 0:02:45]} 9. Qd2 {[%clk 0:01:34]}  Bxf3 {[%clk 0:02:42]} 10. gxf3 {[%clk 0:01:32]}  Nxd4 {[%clk 0:02:41]} 11. exd4 {[%clk 0:01:29]}  Rxd4 {[%clk 0:02:41]} 12. Qxb4 {[%clk 0:01:29]}  Bxb4+ {[%clk 0:02:41]} 13. Ke2 {[%clk 0:01:30]}  Rxc4 {[%clk 0:02:33]} 14. Rg1 {[%clk 0:01:25]}  Ne7 {[%clk 0:02:29]} 15. Be3 {[%clk 0:01:11]}  Rc2+ {[%clk 0:02:25]} 16. Kd3 {[%clk 0:01:10]}  Rxb2 {[%clk 0:02:14]} 17. Rxg7 {[%clk 0:00:51]}  Nf5 {[%clk 0:01:53]} 18. Rg4 {[%clk 0:00:42]}  Nxe3 {[%clk 0:01:28]} 19. fxe3 {[%clk 0:00:41]}  Ke7 {[%clk 0:01:22]} 20. Rc4 {[%clk 0:00:39]}  c5 {[%clk 0:01:15]} 21. a3 {[%clk 0:00:38]}  Rb3+ {[%clk 0:00:57]} 22. Ke4 {[%clk 0:00:27]}  Rxa3 {[%clk 0:00:56]} 23. Rd1 {[%clk 0:00:22]}  Rd8 {[%clk 0:00:49]} 24. Rxd8 {[%clk 0:00:21]}  Kxd8 {[%clk 0:00:50]} 25. Kd5 {[%clk 0:00:20]}  Rxe3 {[%clk 0:00:38]} 26. Rf4 {[%clk 0:00:17]}  Ke7 {[%clk 0:00:35]} 27. h4 {[%clk 0:00:16]}  Bc3 {[%clk 0:00:30]} 28. Rf5 {[%clk 0:00:16]}  b6 {[%clk 0:00:20]} 29. f4 {[%clk 0:00:15]}  Re1 {[%clk 0:00:15]} 30. Bc4 {[%clk 0:00:15]}  f6 {[%clk 0:00:08]} 31. exf6+ {[%clk 0:00:14]}  Bxf6 {[%clk 0:00:08]} 32. Rh5 {[%clk 0:00:15]}  Kf8 {[%clk 0:00:07]} 33. Rxh7 {[%clk 0:00:15]}  Bg7 {[%clk 0:00:07]} 34. Rh5 {[%clk 0:00:14]}  Rd1+ {[%clk 0:00:07]} 35. Kc6 {[%clk 0:00:13]}  Rd4 {[%clk 0:00:08]} 36. Rf5+ {[%clk 0:00:13]}  Ke8 {[%clk 0:00:08]} 37. Bb5 {[%clk 0:00:13]}  Ke7 {[%clk 0:00:07]} 38. Kb7 {[%clk 0:00:12]}  Rd6 {[%clk 0:00:07]} 39. Kxa7 {[%clk 0:00:11]}  Bd4 {[%clk 0:00:07]} 40. Bc4 {[%clk 0:00:10]}  Rh6 {[%clk 0:00:06]} 41. Rf7+ {[%clk 0:00:10]}  Kd6 {[%clk 0:00:07]} 42. Kxb6 {[%clk 0:00:10]}  Be3 {[%clk 0:00:06]} 43. f5 {[%clk 0:00:09]}  Rxh4 {[%clk 0:00:05]} 44. Be6 {[%clk 0:00:08]}  Ke5 {[%clk 0:00:05]} 45. Rd7 {[%clk 0:00:08]}  Rf4 {[%clk 0:00:05]} 46. Rd5+ {[%clk 0:00:07]}  Kf6 {[%clk 0:00:06]} 47. Kc6 {[%clk 0:00:07]}  c4 {[%clk 0:00:06]} 48. Rd6 {[%clk 0:00:07]}  Kg5 {[%clk 0:00:06]} 49. Rd8 {[%clk 0:00:05]}  c3 {[%clk 0:00:06]} 50. Rg8+ {[%clk 0:00:05]}  Kf6 {[%clk 0:00:06]} 51. Rg6+ {[%clk 0:00:05]}  Ke5 {[%clk 0:00:07]} 52. Rg2 {[%clk 0:00:05]}  Bd2 {[%clk 0:00:06]} 53. Bb3 {[%clk 0:00:04]}  Kd4 {[%clk 0:00:06]} 54. Bc2 {[%clk 0:00:05]}  Ke3 {[%clk 0:00:06]} 55. Rg3+ {[%clk 0:00:05]}  Ke2 {[%clk 0:00:06]} 56. Rg2+ {[%clk 0:00:05]}  Ke3 {[%clk 0:00:06]} 57. Kd5 {[%clk 0:00:05]}  Be1 {[%clk 0:00:05]} 58. Ke6 {[%clk 0:00:05]}  Bh4 {[%clk 0:00:04]} 59. Rh2 {[%clk 0:00:03]}  Bg3 {[%clk 0:00:03]} 60. Rg2 {[%clk 0:00:04]}  Rf3 {[%clk 0:00:04]} 61. Bd1 {[%clk 0:00:03]}  Bh4 {[%clk 0:00:02]} 62. Bxf3 {[%clk 0:00:02]}  Kxf3 {[%clk 0:00:03]} 63. Rc2 {[%clk 0:00:03]}  Be1 {[%clk 0:00:03]} 64. f6 {[%clk 0:00:03]}  Ke3 {[%clk 0:00:04]} 65. f7 {[%clk 0:00:03]}  Kd3 {[%clk 0:00:05]} 66. Rxc3+ {[%clk 0:00:03]}  Bxc3 {[%clk 0:00:04]} 67. f8=Q {[%clk 0:00:04]}  Bd4 {[%clk 0:00:05]} 68. Qf5+ {[%clk 0:00:04]}  Ke3 {[%clk 0:00:05]} 69. Kd5 {[%clk 0:00:04]}  Bc3 {[%clk 0:00:05]} 70. Qg4 {[%clk 0:00:04]}  Bd2 {[%clk 0:00:06]} 71. Qg3+ {[%clk 0:00:03]}  Ke2 {[%clk 0:00:06]} 72. Ke4 {[%clk 0:00:04]}  Kf1 {[%clk 0:00:06]} 73. Qh2 {[%clk 0:00:04]}  Be3 {[%clk 0:00:07]} 74. Kf3 {[%clk 0:00:04]}  Bg1 {[%clk 0:00:07]} 75. Qe2# {[%clk 0:00:03]} 1-0


[Site "https://www.chess.com"]

[Event "Titled Tuesday Blitz April 12 Late 2022"]
[White "Kavyev, Ruslan"]
[Black "Vusatiuk, Vladimir"]
[WhiteFideId "34110981"]
[BlackFideId "14118610"]
[WhiteElo "2182"]
[BlackElo "2157"]
[Result "0-1"]
[Round "06"]
[TimeControl "180+1"]
[Date "2022.04.13"]
[WhiteClock "0:00:17"]
[BlackClock "0:00:12"]

1. e4 {[%clk 0:02:52]}  c5 {[%clk 0:02:53]} 2. Nf3 {[%clk 0:02:50]}  d6 {[%clk 0:02:52]} 3. d4 {[%clk 0:02:50]}  cxd4 {[%clk 0:02:53]} 4. Nxd4 {[%clk 0:02:51]}  Nf6 {[%clk 0:02:54]} 5. Nc3 {[%clk 0:02:51]}  Nc6 {[%clk 0:02:54]} 6. Bc4 {[%clk 0:02:49]}  Qb6 {[%clk 0:02:54]} 7. Be3 {[%clk 0:02:26]}  Qxb2 {[%clk 0:02:53]} 8. Ndb5 {[%clk 0:02:21]}  Qb4 {[%clk 0:02:37]} 9. Bd3 {[%clk 0:01:36]}  Qa5 {[%clk 0:02:26]} 10. O-O {[%clk 0:01:36]}  a6 {[%clk 0:02:19]} 11. Nd5 {[%clk 0:01:33]}  Nxd5 {[%clk 0:02:04]} 12. exd5 {[%clk 0:01:34]}  axb5 {[%clk 0:02:04]} 13. dxc6 {[%clk 0:01:34]}  bxc6 {[%clk 0:02:05]} 14. Re1 {[%clk 0:01:25]}  e6 {[%clk 0:01:53]} 15. Qf3 {[%clk 0:01:15]}  Bb7 {[%clk 0:01:49]} 16. Rab1 {[%clk 0:01:06]}  Qc7 {[%clk 0:01:44]} 17. Qg3 {[%clk 0:00:50]}  Rxa2 {[%clk 0:01:19]} 18. Bd4 {[%clk 0:00:50]}  Ra4 {[%clk 0:01:05]} 19. c3 {[%clk 0:00:48]}  h5 {[%clk 0:00:55]} 20. h3 {[%clk 0:00:42]}  h4 {[%clk 0:00:55]} 21. Qg5 {[%clk 0:00:40]}  Qe7 {[%clk 0:00:43]} 22. Qg4 {[%clk 0:00:40]}  Qd7 {[%clk 0:00:31]} 23. Qg5 {[%clk 0:00:31]}  Ra8 {[%clk 0:00:23]} 24. Re4 {[%clk 0:00:24]}  c5 {[%clk 0:00:23]} 25. Bxb5 {[%clk 0:00:24]}  Bc6 {[%clk 0:00:23]} 26. Bxc6 {[%clk 0:00:20]}  Qxc6 {[%clk 0:00:24]} 27. Bxg7 {[%clk 0:00:18]}  Rg8 {[%clk 0:00:21]} 28. Rxe6+ {[%clk 0:00:16]}  fxe6 {[%clk 0:00:19]} 29. Qg6+ {[%clk 0:00:16]}  Kd7 {[%clk 0:00:17]} 30. Qf7+ {[%clk 0:00:17]}  Be7 {[%clk 0:00:18]} 31. Bf6 {[%clk 0:00:17]}  Qxg2# {[%clk 0:00:12]} 0-1


[Site "https://www.chess.com"]

[Event "Titled Tuesday Blitz April 12 Late 2022"]
[White "Khabinets, Ivan"]
[Black "Xie, Bryan"]
[WhiteFideId "14115980"]
[BlackFideId "30941296"]
[WhiteElo "2114"]
[BlackElo "1899"]
[Result "1-0"]
[Round "06"]
[TimeControl "180+1"]
[Date "2022.04.13"]
[WhiteClock "0:01:45"]
[BlackClock "0:00:02"]

1. Nf3 {[%clk 0:03:00]}  Nf6 {[%clk 0:02:57]} 2. c4 {[%clk 0:03:00]}  c5 {[%clk 0:02:54]} 3. g3 {[%clk 0:03:00]}  g6 {[%clk 0:02:54]} 4. d4 {[%clk 0:03:01]}  Bg7 {[%clk 0:02:55]} 5. d5 {[%clk 0:03:00]}  d6 {[%clk 0:02:46]} 6. Bg2 {[%clk 0:03:00]}  O-O {[%clk 0:02:43]} 7. O-O {[%clk 0:03:00]}  Nfd7 {[%clk 0:02:33]} 8. Nc3 {[%clk 0:02:59]}  Ne5 {[%clk 0:02:31]} 9. Nd2 {[%clk 0:02:56]}  a6 {[%clk 0:02:15]} 10. a4 {[%clk 0:02:54]}  Qa5 {[%clk 0:02:06]} 11. h3 {[%clk 0:02:52]}  b5 {[%clk 0:01:56]} 12. cxb5 {[%clk 0:02:34]}  axb5 {[%clk 0:01:43]} 13. Nxb5 {[%clk 0:02:35]}  Ba6 {[%clk 0:01:41]} 14. Nb3 {[%clk 0:02:28]}  Qb4 {[%clk 0:01:31]} 15. Nc7 {[%clk 0:02:22]}  Ra7 {[%clk 0:01:03]} 16. Bd2 {[%clk 0:02:22]}  Qc4 {[%clk 0:01:00]} 17. Nxa6 {[%clk 0:02:05]}  Rxa6 {[%clk 0:01:01]} 18. Na5 {[%clk 0:02:00]}  Qd4 {[%clk 0:00:45]} 19. Bc3 {[%clk 0:01:58]}  Qxd1 {[%clk 0:00:39]} 20. Rfxd1 {[%clk 0:01:59]}  Nbd7 {[%clk 0:00:36]} 21. f4 {[%clk 0:01:52]}  Rxa5 {[%clk 0:00:34]} 22. Bxa5 {[%clk 0:01:49]}  Nc4 {[%clk 0:00:35]} 23. Bc3 {[%clk 0:01:47]}  Nxb2 {[%clk 0:00:18]} 24. Bxg7 {[%clk 0:01:46]}  Kxg7 {[%clk 0:00:19]} 25. Rdb1 {[%clk 0:01:45]}  Nc4 {[%clk 0:00:19]} 26. a5 {[%clk 0:01:46]}  Ra8 {[%clk 0:00:16]} 27. a6 {[%clk 0:01:46]}  Ndb6 {[%clk 0:00:16]} 28. e4 {[%clk 0:01:45]}  f5 {[%clk 0:00:15]} 29. Bf1 {[%clk 0:01:45]}  fxe4 {[%clk 0:00:14]} 30. a7 {[%clk 0:01:45]}  e3 {[%clk 0:00:14]} 31. Bxc4 {[%clk 0:01:45]}  Nxc4 {[%clk 0:00:13]} 32. Rb8 {[%clk 0:01:45]}  e2 {[%clk 0:00:02]} 33. Rxa8 {[%clk 0:01:45]} 1-0


[Site "https://www.chess.com"]

[Event "Titled Tuesday Blitz April 12 Late 2022"]
[White "Kobalia, Mikhail"]
[Black "Nazaretyan, Tigran"]
[WhiteFideId "4119150"]
[BlackFideId "24162345"]
[WhiteElo "2667"]
[BlackElo "2225"]
[Result "0-1"]
[Round "06"]
[TimeControl "180+1"]
[Date "2022.04.12"]
[WhiteClock "0:00:10"]
[BlackClock "0:00:04"]

1. e4 {[%clk 0:02:57]}  e5 {[%clk 0:02:59]} 2. Nf3 {[%clk 0:02:56]}  Nc6 {[%clk 0:02:59]} 3. Bb5 {[%clk 0:02:56]}  a6 {[%clk 0:02:58]} 4. Ba4 {[%clk 0:02:56]}  Nf6 {[%clk 0:02:58]} 5. O-O {[%clk 0:02:56]}  Be7 {[%clk 0:02:57]} 6. d3 {[%clk 0:02:55]}  b5 {[%clk 0:02:55]} 7. Bb3 {[%clk 0:02:56]}  O-O {[%clk 0:02:55]} 8. Nc3 {[%clk 0:02:55]}  d6 {[%clk 0:02:53]} 9. a3 {[%clk 0:02:55]}  Na5 {[%clk 0:02:49]} 10. Ba2 {[%clk 0:02:55]}  c5 {[%clk 0:02:49]} 11. Nd5 {[%clk 0:02:51]}  Nxd5 {[%clk 0:02:42]} 12. Bxd5 {[%clk 0:02:51]}  Bb7 {[%clk 0:02:40]} 13. b4 {[%clk 0:02:48]}  Bxd5 {[%clk 0:02:35]} 14. exd5 {[%clk 0:02:48]}  Nb7 {[%clk 0:02:35]} 15. Re1 {[%clk 0:02:38]}  Bf6 {[%clk 0:02:27]} 16. Rb1 {[%clk 0:02:35]}  Rc8 {[%clk 0:02:25]} 17. Bd2 {[%clk 0:02:29]}  c4 {[%clk 0:02:23]} 18. Be3 {[%clk 0:02:15]}  Re8 {[%clk 0:02:15]} 19. Nd2 {[%clk 0:02:13]}  cxd3 {[%clk 0:02:14]} 20. cxd3 {[%clk 0:02:14]}  Rc3 {[%clk 0:02:08]} 21. Ne4 {[%clk 0:02:11]}  Rxa3 {[%clk 0:02:04]} 22. Rc1 {[%clk 0:02:03]}  Be7 {[%clk 0:01:50]} 23. g4 {[%clk 0:01:41]}  a5 {[%clk 0:01:34]} 24. Rc6 {[%clk 0:01:08]}  axb4 {[%clk 0:01:30]} 25. Rb6 {[%clk 0:01:08]}  Qd7 {[%clk 0:01:05]} 26. h3 {[%clk 0:00:59]}  h5 {[%clk 0:01:05]} 27. Qc1 {[%clk 0:00:55]}  hxg4 {[%clk 0:00:59]} 28. Qc6 {[%clk 0:00:53]}  Qxc6 {[%clk 0:00:38]} 29. dxc6 {[%clk 0:00:54]}  Nc5 {[%clk 0:00:29]} 30. Nxc5 {[%clk 0:00:48]}  dxc5 {[%clk 0:00:29]} 31. c7 {[%clk 0:00:48]}  c4 {[%clk 0:00:16]} 32. Rb8 {[%clk 0:00:47]}  Ra8 {[%clk 0:00:16]} 33. Ba7 {[%clk 0:00:42]}  Bd6 {[%clk 0:00:07]} 34. Rxa8 {[%clk 0:00:17]}  Rxa8 {[%clk 0:00:06]} 35. Bb8 {[%clk 0:00:18]}  Rxb8 {[%clk 0:00:04]} 36. cxb8=Q+ {[%clk 0:00:19]}  Bxb8 {[%clk 0:00:04]} 37. Rc1 {[%clk 0:00:16]}  c3 {[%clk 0:00:04]} 38. hxg4 {[%clk 0:00:15]}  Ba7 {[%clk 0:00:04]} 39. Kf1 {[%clk 0:00:11]}  Bd4 {[%clk 0:00:04]} 40. Rb1 {[%clk 0:00:10]}  c2 {[%clk 0:00:04]} 0-1


[Site "https://www.chess.com"]

[Event "Titled Tuesday Blitz April 12 Late 2022"]
[White "Kosteniuk, Alexandra"]
[Black "Xiong, Jeffery"]
[WhiteFideId "4128125"]
[BlackFideId "2047640"]
[WhiteElo "2469"]
[BlackElo "2727"]
[Result "0-1"]
[Round "06"]
[TimeControl "180+1"]
[Date "2022.04.12"]
[WhiteClock "0:00:05"]
[BlackClock "0:00:06"]

1. e4 {[%clk 0:03:00]}  c5 {[%clk 0:02:56]} 2. Nf3 {[%clk 0:03:01]}  d6 {[%clk 0:02:57]} 3. d4 {[%clk 0:03:01]}  cxd4 {[%clk 0:02:57]} 4. Nxd4 {[%clk 0:03:02]}  Nf6 {[%clk 0:02:58]} 5. Nc3 {[%clk 0:03:03]}  a6 {[%clk 0:02:59]} 6. Be2 {[%clk 0:03:03]}  e5 {[%clk 0:02:59]} 7. Nb3 {[%clk 0:03:03]}  Be7 {[%clk 0:02:59]} 8. O-O {[%clk 0:03:03]}  O-O {[%clk 0:03:00]} 9. Be3 {[%clk 0:03:03]}  Be6 {[%clk 0:03:00]} 10. Bf3 {[%clk 0:02:58]}  Nbd7 {[%clk 0:02:59]} 11. a4 {[%clk 0:02:58]}  Qb8 {[%clk 0:02:49]} 12. a5 {[%clk 0:02:58]}  Rc8 {[%clk 0:02:49]} 13. Re1 {[%clk 0:02:50]}  Bd8 {[%clk 0:02:40]} 14. Nd2 {[%clk 0:02:33]}  b5 {[%clk 0:02:40]} 15. axb6 {[%clk 0:02:33]}  Bxb6 {[%clk 0:02:40]} 16. Na4 {[%clk 0:02:20]}  Bxe3 {[%clk 0:02:19]} 17. Rxe3 {[%clk 0:02:21]}  Nb6 {[%clk 0:02:20]} 18. Nxb6 {[%clk 0:02:14]}  Qxb6 {[%clk 0:02:20]} 19. b3 {[%clk 0:02:04]}  Rc5 {[%clk 0:02:20]} 20. c4 {[%clk 0:02:01]}  Ra5 {[%clk 0:02:09]} 21. Rd3 {[%clk 0:01:52]}  Rxa1 {[%clk 0:02:06]} 22. Qxa1 {[%clk 0:01:52]}  Nd7 {[%clk 0:02:07]} 23. Qa3 {[%clk 0:01:35]}  Nc5 {[%clk 0:02:06]} 24. Re3 {[%clk 0:01:35]}  Rb8 {[%clk 0:02:06]} 25. h3 {[%clk 0:01:34]}  a5 {[%clk 0:02:04]} 26. Bd1 {[%clk 0:01:29]}  Qb4 {[%clk 0:01:47]} 27. Qc1 {[%clk 0:01:26]}  Bd7 {[%clk 0:01:39]} 28. Rg3 {[%clk 0:01:15]}  Bc6 {[%clk 0:01:38]} 29. Bc2 {[%clk 0:01:12]}  Ne6 {[%clk 0:01:23]} 30. Nf3 {[%clk 0:01:01]}  Nf4 {[%clk 0:01:21]} 31. Qd1 {[%clk 0:00:55]}  Qc5 {[%clk 0:01:08]} 32. Nh4 {[%clk 0:00:51]}  g6 {[%clk 0:00:45]} 33. Nf5 {[%clk 0:00:51]}  Rd8 {[%clk 0:00:42]} 34. Ne7+ {[%clk 0:00:48]}  Kf8 {[%clk 0:00:42]} 35. Nxc6 {[%clk 0:00:42]}  Qxc6 {[%clk 0:00:43]} 36. Rf3 {[%clk 0:00:34]}  Qc5 {[%clk 0:00:43]} 37. h4 {[%clk 0:00:31]}  Ne6 {[%clk 0:00:43]} 38. Qd2 {[%clk 0:00:27]}  Nd4 {[%clk 0:00:40]} 39. Rd3 {[%clk 0:00:21]}  Rb8 {[%clk 0:00:33]} 40. Bd1 {[%clk 0:00:20]}  Qb4 {[%clk 0:00:29]} 41. Qe3 {[%clk 0:00:20]}  Kg7 {[%clk 0:00:16]} 42. h5 {[%clk 0:00:20]}  Qc5 {[%clk 0:00:16]} 43. h6+ {[%clk 0:00:20]}  Kf8 {[%clk 0:00:15]} 44. Qg5 {[%clk 0:00:20]}  Qc8 {[%clk 0:00:09]} 45. Qf6 {[%clk 0:00:19]}  Qd8 {[%clk 0:00:09]} 46. Qg7+ {[%clk 0:00:19]}  Ke7 {[%clk 0:00:10]} 47. Qxh7 {[%clk 0:00:18]}  Qf8 {[%clk 0:00:05]} 48. Rh3 {[%clk 0:00:17]}  Ne6 {[%clk 0:00:05]} 49. Rg3 {[%clk 0:00:16]}  a4 {[%clk 0:00:03]} 50. bxa4 {[%clk 0:00:09]}  Rb1 {[%clk 0:00:04]} 51. Rd3 {[%clk 0:00:09]}  Nc5 {[%clk 0:00:05]} 52. Rd5 {[%clk 0:00:09]}  Nxe4 {[%clk 0:00:05]} 53. Qg7 {[%clk 0:00:09]}  Nc3 {[%clk 0:00:03]} 54. Qxf8+ {[%clk 0:00:04]}  Kxf8 {[%clk 0:00:03]} 55. Rxd6 {[%clk 0:00:05]}  Kg8 {[%clk 0:00:03]} 56. Kh2 {[%clk 0:00:04]}  Nxd1 {[%clk 0:00:03]} 57. a5 {[%clk 0:00:03]}  Nxf2 {[%clk 0:00:03]} 58. a6 {[%clk 0:00:04]}  Rh1+ {[%clk 0:00:03]} 59. Kg3 {[%clk 0:00:04]}  Ne4+ {[%clk 0:00:04]} 60. Kf3 {[%clk 0:00:04]}  Nxd6 {[%clk 0:00:05]} 61. c5 {[%clk 0:00:05]}  Ra1 {[%clk 0:00:06]} 62. cxd6 {[%clk 0:00:05]}  Rxa6 {[%clk 0:00:06]} 0-1


[Site "https://www.chess.com"]

[Event "Titled Tuesday Blitz April 12 Late 2022"]
[White "Le Goff, Ronan"]
[Black "Curtis, John"]
[WhiteFideId "612073"]
[BlackFideId "3200256"]
[WhiteElo "2276"]
[BlackElo "2203"]
[Result "1-0"]
[Round "06"]
[TimeControl "180+1"]
[Date "2022.04.13"]
[WhiteClock "0:00:30"]
[BlackClock "0:00:08"]

1. d4 {[%clk 0:02:58]}  Nf6 {[%clk 0:02:59]} 2. Nf3 {[%clk 0:02:57]}  g6 {[%clk 0:02:58]} 3. Bg5 {[%clk 0:02:56]}  c5 {[%clk 0:02:56]} 4. Bxf6 {[%clk 0:02:55]}  exf6 {[%clk 0:02:56]} 5. d5 {[%clk 0:02:55]}  f5 {[%clk 0:02:52]} 6. Nc3 {[%clk 0:02:52]}  Bg7 {[%clk 0:02:52]} 7. e3 {[%clk 0:02:50]}  Qa5 {[%clk 0:02:49]} 8. Qd2 {[%clk 0:02:45]}  Bxc3 {[%clk 0:02:44]} 9. Qxc3 {[%clk 0:02:43]}  Qxc3+ {[%clk 0:02:43]} 10. bxc3 {[%clk 0:02:44]}  d6 {[%clk 0:02:41]} 11. h4 {[%clk 0:02:34]}  O-O {[%clk 0:02:30]} 12. h5 {[%clk 0:02:31]}  Re8 {[%clk 0:02:27]} 13. Kd2 {[%clk 0:02:30]}  Nd7 {[%clk 0:02:21]} 14. Bb5 {[%clk 0:02:27]}  Re7 {[%clk 0:02:21]} 15. Bxd7 {[%clk 0:02:27]}  Bxd7 {[%clk 0:02:21]} 16. a4 {[%clk 0:02:24]}  Rae8 {[%clk 0:02:15]} 17. g3 {[%clk 0:02:21]}  f4 {[%clk 0:02:06]} 18. gxf4 {[%clk 0:02:07]}  Bf5 {[%clk 0:01:53]} 19. c4 {[%clk 0:01:45]}  Bg4 {[%clk 0:01:32]} 20. Ng5 {[%clk 0:01:28]}  f6 {[%clk 0:01:22]} 21. Nh3 {[%clk 0:01:24]}  Bxh5 {[%clk 0:01:21]} 22. Rab1 {[%clk 0:01:17]}  b6 {[%clk 0:01:19]} 23. a5 {[%clk 0:01:17]}  bxa5 {[%clk 0:01:02]} 24. Ra1 {[%clk 0:01:14]}  Rb8 {[%clk 0:01:02]} 25. Rxa5 {[%clk 0:01:10]}  Rb4 {[%clk 0:01:01]} 26. f5 {[%clk 0:01:02]}  Rxc4 {[%clk 0:00:45]} 27. Nf4 {[%clk 0:00:59]}  Re5 {[%clk 0:00:37]} 28. Rxa7 {[%clk 0:00:54]}  Rxf5 {[%clk 0:00:23]} 29. Rha1 {[%clk 0:00:34]}  Rcxf4 {[%clk 0:00:15]} 30. exf4 {[%clk 0:00:32]}  Rxd5+ {[%clk 0:00:08]} 31. Kc3 {[%clk 0:00:30]} 1-0


[Site "https://www.chess.com"]